[Event "*** Titled Tuesday Blitz"]
[Site "Chess.com"]
[Date "2020.12.29"]
[Round "6"]
[White "GM_LOADING"]
[Black "elohunter1999"]
[Result "1/2-1/2"]
[WhiteElo "2505"]
[BlackElo "2680"]
[TimeControl "180+1"]
[EndTime "11:07:56 PST"]
[Termination "Game drawn - insufficient material"]

1. d4 {[%clk 0:03:00.9]} 1... Nf6 {[%clk 0:02:59.4]} 2. Nf3 {[%clk 0:02:59.7]}
2... d5 {[%clk 0:02:58.3]} 3. c4 {[%clk 0:02:59.4]} 3... e6 {[%clk 0:02:56.1]}
4. Nc3 {[%clk 0:02:59.7]} 4... c6 {[%clk 0:02:55.9]} 5. Bg5 {[%clk 0:02:59.5]}
5... h6 {[%clk 0:02:55.5]} 6. Bh4 {[%clk 0:02:58.1]} 6... dxc4 {[%clk
0:02:54.4]} 7. e3 {[%clk 0:02:56.9]} 7... b5 {[%clk 0:02:53.2]} 8. a4 {[%clk
0:02:53.7]} 8... Bb4 {[%clk 0:02:52.3]} 9. Be2 {[%clk 0:02:52]} 9... Nbd7 {[%clk
0:02:51.3]} 10. O-O {[%clk 0:02:51.7]} 10... Qb6 {[%clk 0:02:47.6]} 11. Qc2
{[%clk 0:02:45]} 11... Bb7 {[%clk 0:02:30.6]} 12. Rfd1 {[%clk 0:02:40.5]} 12...
a6 {[%clk 0:02:28.1]} 13. Ne5 {[%clk 0:02:21.6]} 13... O-O {[%clk 0:02:20.3]}
14. Ne4 {[%clk 0:02:13]} 14... c5 {[%clk 0:01:57.4]} 15. Nxf6+ {[%clk
0:01:43.3]} 15... Nxf6 {[%clk 0:01:56.6]} 16. Bxf6 {[%clk 0:01:43.1]} 16... gxf6
{[%clk 0:01:57.5]} 17. Nd7 {[%clk 0:01:43.4]} 17... Qc6 {[%clk 0:01:54.6]} 18.
Nxf6+ {[%clk 0:01:42.8]} 18... Kg7 {[%clk 0:01:46.4]} 19. Bf3 {[%clk 0:01:19.2]}
19... Qc7 {[%clk 0:01:38.6]} 20. Nh5+ {[%clk 0:01:16.3]} 20... Kh8 {[%clk
0:01:37.6]} 21. Bxb7 {[%clk 0:01:03.5]} 21... Qxb7 {[%clk 0:01:38.5]} 22. d5
{[%clk 0:00:58.9]} 22... Rg8 {[%clk 0:01:22.5]} 23. Qe4 {[%clk 0:00:54.4]} 23...
Rg5 {[%clk 0:01:14.8]} 24. Nf6 {[%clk 0:00:33.7]} 24... Kg7 {[%clk 0:00:20.4]}
25. d6 {[%clk 0:00:18.1]} 25... Qxe4 {[%clk 0:00:19.6]} 26. Nxe4 {[%clk
0:00:19]} 26... Re5 {[%clk 0:00:18.5]} 27. d7 {[%clk 0:00:11.7]} 27... Rd8
{[%clk 0:00:16.3]} 28. Nd6 {[%clk 0:00:06.4]} 28... Rd5 {[%clk 0:00:16.3]} 29.
axb5 {[%clk 0:00:05.7]} 29... axb5 {[%clk 0:00:12.4]} 30. Nxb5 {[%clk
0:00:04.7]} 30... R8xd7 {[%clk 0:00:11.9]} 31. Rdc1 {[%clk 0:00:05.4]} 31... Rd2
{[%clk 0:00:09.3]} 32. Rab1 {[%clk 0:00:05.4]} 32... Re2 {[%clk 0:00:09]} 33.
Nc3 {[%clk 0:00:03.2]} 33... Bxc3 {[%clk 0:00:08.6]} 34. bxc3 {[%clk 0:00:04.1]}
34... Rdd2 {[%clk 0:00:08.9]} 35. Rf1 {[%clk 0:00:05]} 35... Rc2 {[%clk
0:00:09]} 36. Rb5 {[%clk 0:00:05.5]} 36... Rxc3 {[%clk 0:00:09]} 37. Rxc5 {[%clk
0:00:06.4]} 37... Rcc2 {[%clk 0:00:09.9]} 38. g3 {[%clk 0:00:06.4]} 38... c3
{[%clk 0:00:09.9]} 39. Kg2 {[%clk 0:00:06.8]} 39... Kg6 {[%clk 0:00:10.2]} 40.
Kf3 {[%clk 0:00:07.1]} 40... f5 {[%clk 0:00:10.3]} 41. h4 {[%clk 0:00:07.4]}
41... Kf6 {[%clk 0:00:09.9]} 42. Rc8 {[%clk 0:00:07.5]} 42... e5 {[%clk
0:00:08.7]} 43. Rc6+ {[%clk 0:00:07.2]} 43... Kg7 {[%clk 0:00:07.7]} 44. h5
{[%clk 0:00:07.4]} 44... e4+ {[%clk 0:00:06.3]} 45. Kf4 {[%clk 0:00:07.3]} 45...
Rxf2+ {[%clk 0:00:06.4]} 46. Rxf2 {[%clk 0:00:08.2]} 46... Rxf2+ {[%clk
0:00:07.2]} 47. Ke5 {[%clk 0:00:09.1]} 47... c2 {[%clk 0:00:07.3]} 48. Rc7+
{[%clk 0:00:08.6]} 48... Kf8 {[%clk 0:00:07.5]} 49. Kf6 {[%clk 0:00:09]} 49...
Ke8 {[%clk 0:00:07.2]} 50. Kg6 {[%clk 0:00:09.5]} 50... Rf3 {[%clk 0:00:06.1]}
51. Kxh6 {[%clk 0:00:09.5]} 51... Rxg3 {[%clk 0:00:05.8]} 52. Rxc2 {[%clk
0:00:09.3]} 52... Kf7 {[%clk 0:00:05.9]} 53. Rc7+ {[%clk 0:00:08.7]} 53... Kf6
{[%clk 0:00:06.1]} 54. Rc3 {[%clk 0:00:08.6]} 54... f4 {[%clk 0:00:04.5]} 55.
Rc6+ {[%clk 0:00:08.3]} 55... Kf5 {[%clk 0:00:04.6]} 56. Rc5+ {[%clk 0:00:07.9]}
56... Kg4 {[%clk 0:00:03.8]} 57. Rg5+ {[%clk 0:00:06.7]} 57... Kf3 {[%clk
0:00:03.5]} 58. exf4 {[%clk 0:00:07.1]} 58... e3 {[%clk 0:00:02.6]} 59. Re5
{[%clk 0:00:07]} 59... Kxf4 {[%clk 0:00:02.6]} 60. Re8 {[%clk 0:00:07.2]} 60...
Kf3 {[%clk 0:00:02.8]} 61. Kh7 {[%clk 0:00:07.5]} 61... e2 {[%clk 0:00:02.9]}
62. h6 {[%clk 0:00:08]} 62... Kf2 {[%clk 0:00:03.1]} 63. Rxe2+ {[%clk
0:00:07.3]} 63... Kxe2 {[%clk 0:00:03]} 64. Kh8 {[%clk 0:00:07.8]} 64... Kf3
{[%clk 0:00:03.4]} 65. h7 {[%clk 0:00:08.7]} 65... Kg4 {[%clk 0:00:04]} 66. Kg7
{[%clk 0:00:08.1]} 66... Kf5+ {[%clk 0:00:04.1]} 67. Kh8 {[%clk 0:00:07.5]}
67... Kg6 {[%clk 0:00:03.5]} 68. Kg8 {[%clk 0:00:06.7]} 68... Kf6+ {[%clk
0:00:03.8]} 69. Kf8 {[%clk 0:00:05.5]} 69... Rh3 {[%clk 0:00:04]} 70. Kg8 {[%clk
0:00:05.6]} 70... Rg3+ {[%clk 0:00:04.2]} 71. Kf8 {[%clk 0:00:05]} 71... Rh3
{[%clk 0:00:03.6]} 72. Kg8 {[%clk 0:00:04.8]} 72... Kg6 {[%clk 0:00:04]} 73.
h8=Q {[%clk 0:00:04.1]} 73... Rxh8+ {[%clk 0:00:04.3]} 74. Kxh8 {[%clk 0:00:05]}
1/2-1/2

[Event "*** Titled Tuesday Blitz"]
[Site "Chess.com"]
[Date "2020.12.29"]
[Round "6"]
[White "Morshynska"]
[Black "The_Machine04"]
[Result "1/2-1/2"]
[WhiteElo "2222"]
[BlackElo "2418"]
[TimeControl "180+1"]
[EndTime "11:07:57 PST"]
[Termination "Game drawn - insufficient material"]

1. Nf3 {[%clk 0:03:00.9]} 1... d6 {[%clk 0:02:59.6]} 2. d4 {[%clk 0:03:00.2]}
2... Nf6 {[%clk 0:02:59.7]} 3. g3 {[%clk 0:02:54.9]} 3... g6 {[%clk 0:02:59.3]}
4. Bg2 {[%clk 0:02:54.7]} 4... Bg7 {[%clk 0:03:00.2]} 5. O-O {[%clk 0:02:55.3]}
5... O-O {[%clk 0:03:01.1]} 6. b3 {[%clk 0:02:55.4]} 6... c6 {[%clk 0:03:01.6]}
7. Bb2 {[%clk 0:02:55.1]} 7... Nbd7 {[%clk 0:03:02.3]} 8. c4 {[%clk 0:02:55.2]}
8... Re8 {[%clk 0:03:02.7]} 9. Nc3 {[%clk 0:02:48.7]} 9... Qc7 {[%clk
0:03:03.3]} 10. e4 {[%clk 0:02:46.5]} 10... e5 {[%clk 0:03:03.7]} 11. dxe5
{[%clk 0:02:47.4]} 11... dxe5 {[%clk 0:03:04.5]} 12. Qc2 {[%clk 0:02:44.1]}
12... Nc5 {[%clk 0:03:01.8]} 13. b4 {[%clk 0:02:37.1]} 13... Ne6 {[%clk
0:03:00.7]} 14. Rfd1 {[%clk 0:02:28.9]} 14... Nd7 {[%clk 0:02:57.2]} 15. c5
{[%clk 0:02:17.2]} 15... b6 {[%clk 0:02:47.3]} 16. cxb6 {[%clk 0:02:16.1]} 16...
axb6 {[%clk 0:02:48.2]} 17. a3 {[%clk 0:02:05.5]} 17... Bb7 {[%clk 0:02:41.2]}
18. Rac1 {[%clk 0:02:01.3]} 18... Rac8 {[%clk 0:02:40.2]} 19. Bh3 {[%clk
0:01:50.2]} 19... Ndf8 {[%clk 0:02:26.4]} 20. Na4 {[%clk 0:01:43]} 20... Rcd8
{[%clk 0:02:15.8]} 21. Bc3 {[%clk 0:01:18.3]} 21... h6 {[%clk 0:01:31.7]} 22.
Qe2 {[%clk 0:01:02.3]} 22... Nd4 {[%clk 0:01:17.5]} 23. Bxd4 {[%clk 0:00:55.4]}
23... exd4 {[%clk 0:01:18.4]} 24. Qc2 {[%clk 0:00:47.6]} 24... Ne6 {[%clk
0:01:08.7]} 25. Nb2 {[%clk 0:00:41.9]} 25... c5 {[%clk 0:01:03.6]} 26. Nd2
{[%clk 0:00:35.9]} 26... Rc8 {[%clk 0:00:45.9]} 27. bxc5 {[%clk 0:00:32.8]}
27... bxc5 {[%clk 0:00:42.9]} 28. Nd3 {[%clk 0:00:30.4]} 28... Bf8 {[%clk
0:00:31.6]} 29. f3 {[%clk 0:00:27.2]} 29... Ba6 {[%clk 0:00:26.2]} 30. Nc4
{[%clk 0:00:25.2]} 30... Qa7 {[%clk 0:00:20.1]} 31. Rb1 {[%clk 0:00:24.5]} 31...
Rb8 {[%clk 0:00:19.4]} 32. Kg2 {[%clk 0:00:23.1]} 32... Rxb1 {[%clk 0:00:15.4]}
33. Rxb1 {[%clk 0:00:22.8]} 33... Rb8 {[%clk 0:00:15.8]} 34. Rxb8 {[%clk
0:00:22.6]} 34... Qxb8 {[%clk 0:00:16.7]} 35. Kf2 {[%clk 0:00:21.5]} 35... Qb5
{[%clk 0:00:15.9]} 36. Ndb2 {[%clk 0:00:21.2]} 36... Bg7 {[%clk 0:00:10.8]} 37.
Bf1 {[%clk 0:00:21.2]} 37... Qb7 {[%clk 0:00:07.9]} 38. Bd3 {[%clk 0:00:20.6]}
38... Qc6 {[%clk 0:00:07.4]} 39. Kg2 {[%clk 0:00:20.3]} 39... Qa8 {[%clk
0:00:04.6]} 40. Qa4 {[%clk 0:00:20.2]} 40... Bb7 {[%clk 0:00:03.9]} 41. Qxa8+
{[%clk 0:00:19.8]} 41... Bxa8 {[%clk 0:00:04.8]} 42. a4 {[%clk 0:00:20.2]} 42...
Nc7 {[%clk 0:00:04]} 43. a5 {[%clk 0:00:19.8]} 43... Bb7 {[%clk 0:00:04.1]} 44.
Nd6 {[%clk 0:00:19.1]} 44... Ba6 {[%clk 0:00:04.1]} 45. Bxa6 {[%clk 0:00:17.2]}
45... Nxa6 {[%clk 0:00:05]} 46. Nbc4 {[%clk 0:00:16.6]} 46... Bf8 {[%clk
0:00:05.3]} 47. Nb5 {[%clk 0:00:15.8]} 47... Be7 {[%clk 0:00:04.4]} 48. f4
{[%clk 0:00:15.8]} 48... Kf8 {[%clk 0:00:03.9]} 49. Kf3 {[%clk 0:00:16]} 49...
Ke8 {[%clk 0:00:04.5]} 50. e5 {[%clk 0:00:16.5]} 50... Kd7 {[%clk 0:00:04.1]}
51. Ke4 {[%clk 0:00:16.2]} 51... Kc6 {[%clk 0:00:04]} 52. Nba3 {[%clk
0:00:15.6]} 52... Nb4 {[%clk 0:00:03.1]} 53. h4 {[%clk 0:00:15.6]} 53... h5
{[%clk 0:00:02.8]} 54. f5 {[%clk 0:00:13.8]} 54... gxf5+ {[%clk 0:00:02.6]} 55.
Kxf5 {[%clk 0:00:14.7]} 55... Kd5 {[%clk 0:00:03]} 56. g4 {[%clk 0:00:13.8]}
56... hxg4 {[%clk 0:00:03.4]} 57. Kxg4 {[%clk 0:00:14.7]} 57... d3 {[%clk
0:00:03.9]} 58. h5 {[%clk 0:00:13.7]} 58... d2 {[%clk 0:00:03.8]} 59. Nxd2
{[%clk 0:00:13.2]} 59... Kxe5 {[%clk 0:00:04.7]} 60. h6 {[%clk 0:00:12.1]} 60...
f5+ {[%clk 0:00:04.9]} 61. Kh5 {[%clk 0:00:10.3]} 61... Kf6 {[%clk 0:00:04.1]}
62. Nf3 {[%clk 0:00:08.5]} 62... Bf8 {[%clk 0:00:03.3]} 63. Nc4 {[%clk
0:00:07.7]} 63... Na6 {[%clk 0:00:03]} 64. Nfe5 {[%clk 0:00:06.6]} 64... Bxh6
{[%clk 0:00:03]} 65. Kxh6 {[%clk 0:00:05.7]} 65... f4 {[%clk 0:00:03.9]} 66. Kh5
{[%clk 0:00:05.7]} 66... Kf5 {[%clk 0:00:04.3]} 67. Kh6 {[%clk 0:00:04.7]} 67...
Ke4 {[%clk 0:00:04.6]} 68. Kg6 {[%clk 0:00:04.7]} 68... f3 {[%clk 0:00:05]} 69.
Nxf3 {[%clk 0:00:04.9]} 69... Kxf3 {[%clk 0:00:05.6]} 70. Kf5 {[%clk 0:00:05.7]}
70... Ke2 {[%clk 0:00:05.5]} 71. Ke5 {[%clk 0:00:05.8]} 71... Nb4 {[%clk
0:00:04.9]} 72. Kd6 {[%clk 0:00:05]} 72... Kd3 {[%clk 0:00:02.9]} 73. Kxc5
{[%clk 0:00:04.5]} 73... Na6+ {[%clk 0:00:03]} 74. Kb5 {[%clk 0:00:03.8]} 74...
Nc7+ {[%clk 0:00:03.2]} 75. Kc6 {[%clk 0:00:03.9]} 75... Kxc4 {[%clk 0:00:02.2]}
76. Kxc7 {[%clk 0:00:04.1]} 76... Kb5 {[%clk 0:00:02.9]} 77. a6 {[%clk
0:00:04.7]} 77... Kxa6 {[%clk 0:00:03.1]} 1/2-1/2

[Event "*** Titled Tuesday Blitz"]
[Site "Chess.com"]
[Date "2020.12.29"]
[Round "6"]
[White "LiderChessAcademy"]
[Black "grunbergmihai"]
[Result "1/2-1/2"]
[WhiteElo "2610"]
[BlackElo "2443"]
[TimeControl "180+1"]
[EndTime "11:08:04 PST"]
[Termination "Game drawn by repetition"]

1. e4 {[%clk 0:03:00.9]} 1... Nf6 {[%clk 0:03:00]} 2. e5 {[%clk 0:02:57.7]} 2...
Nd5 {[%clk 0:03:00.2]} 3. d4 {[%clk 0:02:58.1]} 3... d6 {[%clk 0:03:00.3]} 4.
Nf3 {[%clk 0:02:56.1]} 4... dxe5 {[%clk 0:03:00.1]} 5. Nxe5 {[%clk 0:02:55.8]}
5... c6 {[%clk 0:03:00.5]} 6. Be2 {[%clk 0:02:50.4]} 6... Nd7 {[%clk 0:03:00]}
7. Nd3 {[%clk 0:02:44.2]} 7... g6 {[%clk 0:02:56.4]} 8. Nd2 {[%clk 0:02:40]}
8... Bg7 {[%clk 0:02:55.9]} 9. Nf3 {[%clk 0:02:40.3]} 9... O-O {[%clk
0:02:55.3]} 10. O-O {[%clk 0:02:34.8]} 10... Qc7 {[%clk 0:02:49.9]} 11. c4
{[%clk 0:02:22.9]} 11... N5b6 {[%clk 0:02:49.7]} 12. Bf4 {[%clk 0:02:22.8]}
12... Qd8 {[%clk 0:02:49.6]} 13. Rc1 {[%clk 0:02:20.1]} 13... Re8 {[%clk
0:02:49]} 14. Re1 {[%clk 0:02:08.1]} 14... Nf8 {[%clk 0:02:46.5]} 15. Nde5
{[%clk 0:01:59.5]} 15... Bf5 {[%clk 0:02:41.7]} 16. h3 {[%clk 0:01:52.5]} 16...
Ne6 {[%clk 0:02:37.5]} 17. Be3 {[%clk 0:01:51.7]} 17... f6 {[%clk 0:02:20.1]}
18. Ng4 {[%clk 0:01:38.9]} 18... Bxg4 {[%clk 0:02:17.3]} 19. hxg4 {[%clk
0:01:38]} 19... Qc7 {[%clk 0:02:09.8]} 20. Qb3 {[%clk 0:01:14.8]} 20... Kh8
{[%clk 0:02:02.7]} 21. g3 {[%clk 0:01:09.6]} 21... Rad8 {[%clk 0:02:01.7]} 22.
Red1 {[%clk 0:01:08.6]} 22... c5 {[%clk 0:01:50]} 23. d5 {[%clk 0:01:05.2]}
23... Nf8 {[%clk 0:01:49.4]} 24. a4 {[%clk 0:00:52.8]} 24... e5 {[%clk
0:01:44.4]} 25. Nd2 {[%clk 0:00:45]} 25... Nc8 {[%clk 0:01:42]} 26. Ne4 {[%clk
0:00:44.2]} 26... b6 {[%clk 0:01:41.5]} 27. Kg2 {[%clk 0:00:38]} 27... Nd6
{[%clk 0:01:39.5]} 28. Bd3 {[%clk 0:00:36.8]} 28... Nxe4 {[%clk 0:01:33.5]} 29.
Bxe4 {[%clk 0:00:37.7]} 29... Rd6 {[%clk 0:01:24.7]} 30. a5 {[%clk 0:00:33.8]}
30... Qf7 {[%clk 0:01:23.4]} 31. Qd3 {[%clk 0:00:31.2]} 31... Nd7 {[%clk
0:01:18.8]} 32. axb6 {[%clk 0:00:30.9]} 32... axb6 {[%clk 0:01:17.6]} 33. Ra1
{[%clk 0:00:31.2]} 33... Rf8 {[%clk 0:01:11.7]} 34. Qc2 {[%clk 0:00:22.4]} 34...
f5 {[%clk 0:01:11.4]} 35. Bf3 {[%clk 0:00:18.9]} 35... f4 {[%clk 0:00:55.2]} 36.
gxf4 {[%clk 0:00:19.2]} 36... exf4 {[%clk 0:00:55.1]} 37. Bd2 {[%clk 0:00:19.5]}
37... Ne5 {[%clk 0:00:53.3]} 38. Bc3 {[%clk 0:00:18.5]} 38... Nxf3 {[%clk
0:00:51.1]} 39. Kxf3 {[%clk 0:00:19.4]} 39... Re8 {[%clk 0:00:45.7]} 40. Re1
{[%clk 0:00:17.3]} 40... Rdd8 {[%clk 0:00:41]} 41. b3 {[%clk 0:00:11.3]} 41...
g5 {[%clk 0:00:38.6]} 42. Rac1 {[%clk 0:00:10.4]} 42... Rd7 {[%clk 0:00:23]} 43.
Rh1 {[%clk 0:00:10.2]} 43... Bxc3 {[%clk 0:00:19.8]} 44. Qxc3+ {[%clk
0:00:11.1]} 44... Qg7 {[%clk 0:00:18.8]} 45. Qxg7+ {[%clk 0:00:07.7]} 45... Kxg7
{[%clk 0:00:17.8]} 46. Ra1 {[%clk 0:00:08.3]} 46... Rf8 {[%clk 0:00:13.7]} 47.
Ra6 {[%clk 0:00:07.9]} 47... Rf6 {[%clk 0:00:13.5]} 48. Rha1 {[%clk 0:00:07.4]}
48... Rh6 {[%clk 0:00:12.3]} 49. Kg2 {[%clk 0:00:06.1]} 49... Rf6 {[%clk
0:00:11.3]} 50. Ra7 {[%clk 0:00:05.8]} 50... Rd6 {[%clk 0:00:11.2]} 51. Rxd7+
{[%clk 0:00:05.7]} 51... Rxd7 {[%clk 0:00:11.1]} 52. Ra6 {[%clk 0:00:06.2]}
52... Rd6 {[%clk 0:00:11]} 53. Kf3 {[%clk 0:00:06.7]} 53... Kg6 {[%clk
0:00:10.7]} 54. Ke4 {[%clk 0:00:07.2]} 54... h5 {[%clk 0:00:10.5]} 55. gxh5+
{[%clk 0:00:07.4]} 55... Kxh5 {[%clk 0:00:09.8]} 56. Ke5 {[%clk 0:00:08.3]}
56... Rd8 {[%clk 0:00:09.5]} 57. d6 {[%clk 0:00:08.7]} 57... Kg4 {[%clk
0:00:07.8]} 58. Rxb6 {[%clk 0:00:07]} 58... Kf3 {[%clk 0:00:07.8]} 59. Kf5
{[%clk 0:00:06.7]} 59... g4 {[%clk 0:00:07.4]} 60. b4 {[%clk 0:00:05.8]} 60...
cxb4 {[%clk 0:00:06.6]} 61. c5 {[%clk 0:00:06.3]} 61... g3 {[%clk 0:00:06.5]}
62. fxg3 {[%clk 0:00:06.2]} 62... fxg3 {[%clk 0:00:07.4]} 63. Rxb4 {[%clk
0:00:06.4]} 63... g2 {[%clk 0:00:06.8]} 64. Rb1 {[%clk 0:00:06.4]} 64... Kf2
{[%clk 0:00:06.9]} 65. Ke6 {[%clk 0:00:06.7]} 65... Re8+ {[%clk 0:00:06.4]} 66.
Kd5 {[%clk 0:00:04.9]} 66... Re1 {[%clk 0:00:07.3]} 67. Rxe1 {[%clk 0:00:04.6]}
67... Kxe1 {[%clk 0:00:08.2]} 68. d7 {[%clk 0:00:05.4]} 68... g1=Q {[%clk
0:00:09]} 69. Kd6 {[%clk 0:00:06.3]} 69... Qd4+ {[%clk 0:00:08.1]} 70. Kc6
{[%clk 0:00:06.5]} 70... Qe4+ {[%clk 0:00:07.9]} 71. Kc7 {[%clk 0:00:06.3]}
71... Qe5+ {[%clk 0:00:07.9]} 72. Kb7 {[%clk 0:00:06.2]} 72... Qd5+ {[%clk
0:00:07.7]} 73. c6 {[%clk 0:00:06.7]} 73... Qb5+ {[%clk 0:00:07.7]} 74. Kc7
{[%clk 0:00:07]} 74... Qe5+ {[%clk 0:00:07.3]} 75. Kc8 {[%clk 0:00:07.3]} 75...
Qd6 {[%clk 0:00:06.7]} 76. c7 {[%clk 0:00:06.6]} 76... Qa6+ {[%clk 0:00:06.4]}
77. Kd8 {[%clk 0:00:06.9]} 77... Qf6+ {[%clk 0:00:05.9]} 78. Kc8 {[%clk
0:00:07.2]} 78... Qa6+ {[%clk 0:00:05.6]} 79. Kb8 {[%clk 0:00:07]} 79... Qb6+
{[%clk 0:00:05.3]} 80. Kc8 {[%clk 0:00:07.4]} 80... Qa6+ {[%clk 0:00:05.3]}
1/2-1/2

[Event "*** Titled Tuesday Blitz"]
[Site "Chess.com"]
[Date "2020.12.29"]
[Round "6"]
[White "Olga_Zhuravleva"]
[Black "Yoda1992"]
[Result "0-1"]
[WhiteElo "2318"]
[BlackElo "2501"]
[TimeControl "180+1"]
[EndTime "11:08:06 PST"]
[Termination "Yoda1992 won on time"]

1. e4 {[%clk 0:03:00.9]} 1... c5 {[%clk 0:02:59.2]} 2. Nf3 {[%clk 0:02:56.8]}
2... d6 {[%clk 0:02:58.5]} 3. d4 {[%clk 0:02:55.8]} 3... cxd4 {[%clk 0:02:59.4]}
4. Nxd4 {[%clk 0:02:56.2]} 4... Nf6 {[%clk 0:02:59.7]} 5. Nc3 {[%clk 0:02:55.6]}
5... g6 {[%clk 0:02:59.9]} 6. Be2 {[%clk 0:02:53.5]} 6... Bg7 {[%clk 0:02:59.9]}
7. O-O {[%clk 0:02:54.1]} 7... O-O {[%clk 0:02:59.6]} 8. Nb3 {[%clk 0:02:54.6]}
8... Nc6 {[%clk 0:02:59.9]} 9. Re1 {[%clk 0:02:53.9]} 9... Be6 {[%clk
0:02:59.7]} 10. Bf1 {[%clk 0:02:53.8]} 10... Rc8 {[%clk 0:02:58.5]} 11. Bg5
{[%clk 0:02:52.5]} 11... Ne5 {[%clk 0:02:55.6]} 12. Nd5 {[%clk 0:02:49]} 12...
Bxd5 {[%clk 0:02:34.4]} 13. exd5 {[%clk 0:02:47.4]} 13... h6 {[%clk 0:02:33.5]}
14. Bh4 {[%clk 0:02:46.6]} 14... Nc4 {[%clk 0:02:30.4]} 15. Rb1 {[%clk
0:02:45.2]} 15... Nb6 {[%clk 0:02:21.1]} 16. Bxf6 {[%clk 0:00:48.5]} 16... Bxf6
{[%clk 0:02:22]} 17. c3 {[%clk 0:00:48.9]} 17... Kg7 {[%clk 0:02:17.3]} 18. Rc1
{[%clk 0:00:45.6]} 18... Na4 {[%clk 0:02:04.9]} 19. Rc2 {[%clk 0:00:44.8]} 19...
Nc5 {[%clk 0:02:02.9]} 20. Nxc5 {[%clk 0:00:43.1]} 20... Rxc5 {[%clk 0:02:02.6]}
21. c4 {[%clk 0:00:42.7]} 21... Qd7 {[%clk 0:01:50.5]} 22. b4 {[%clk 0:00:41.1]}
22... Rc7 {[%clk 0:01:49.9]} 23. a3 {[%clk 0:00:37.5]} 23... b6 {[%clk
0:01:49.2]} 24. h3 {[%clk 0:00:35]} 24... Rfc8 {[%clk 0:01:47.7]} 25. Qf3 {[%clk
0:00:32.1]} 25... b5 {[%clk 0:01:30]} 26. Rec1 {[%clk 0:00:23.7]} 26... bxc4
{[%clk 0:01:28.9]} 27. Rxc4 {[%clk 0:00:22.7]} 27... Rxc4 {[%clk 0:01:18.6]} 28.
Rxc4 {[%clk 0:00:23.6]} 28... Rxc4 {[%clk 0:01:11.3]} 29. Bxc4 {[%clk
0:00:24.5]} 29... Qa4 {[%clk 0:01:00.5]} 30. Qb3 {[%clk 0:00:24.2]} 30... Qxb3
{[%clk 0:00:40.5]} 31. Bxb3 {[%clk 0:00:23.7]} 31... Bb2 {[%clk 0:00:40]} 32. a4
{[%clk 0:00:23.7]} 32... Bc3 {[%clk 0:00:40]} 33. b5 {[%clk 0:00:24]} 33... Ba5
{[%clk 0:00:36.7]} 34. Kf1 {[%clk 0:00:23.8]} 34... Bb6 {[%clk 0:00:36.9]} 35.
Ke2 {[%clk 0:00:24.3]} 35... g5 {[%clk 0:00:35.8]} 36. f3 {[%clk 0:00:24.5]}
36... Kf6 {[%clk 0:00:35.7]} 37. Kd3 {[%clk 0:00:24]} 37... Ke5 {[%clk
0:00:35.9]} 38. Ke2 {[%clk 0:00:10.2]} 38... Kf4 {[%clk 0:00:35.8]} 39. Kf1
{[%clk 0:00:08.9]} 39... f5 {[%clk 0:00:33.9]} 40. Bc2 {[%clk 0:00:08.8]} 40...
Ke5 {[%clk 0:00:32.9]} 41. Bb3 {[%clk 0:00:08.8]} 41... Kf6 {[%clk 0:00:21.6]}
42. Ke2 {[%clk 0:00:09.3]} 42... Ke5 {[%clk 0:00:22]} 43. Kd3 {[%clk 0:00:09]}
43... Kf4 {[%clk 0:00:21.3]} 44. Ke2 {[%clk 0:00:09.5]} 44... Kg3 {[%clk
0:00:20.4]} 45. Kf1 {[%clk 0:00:10]} 45... h5 {[%clk 0:00:18.3]} 46. Bc2 {[%clk
0:00:10.5]} 46... Kf4 {[%clk 0:00:18.7]} 47. Bb3 {[%clk 0:00:10.4]} 47... g4
{[%clk 0:00:18.9]} 48. hxg4 {[%clk 0:00:10.3]} 48... fxg4 {[%clk 0:00:19.8]} 49.
fxg4 {[%clk 0:00:10.6]} 49... hxg4 {[%clk 0:00:18.2]} 50. Bd1 {[%clk 0:00:11.1]}
50... g3 {[%clk 0:00:17.1]} 51. Bf3 {[%clk 0:00:11.5]} 51... Ke3 {[%clk
0:00:17]} 52. Bd1 {[%clk 0:00:11.6]} 52... Ba5 {[%clk 0:00:16.6]} 53. Bc2 {[%clk
0:00:11.4]} 53... Bb4 {[%clk 0:00:16.6]} 54. Bb3 {[%clk 0:00:11.4]} 54... Kd4
{[%clk 0:00:16.6]} 55. Ke2 {[%clk 0:00:10.3]} 55... Kc3 {[%clk 0:00:16.4]} 56.
Ba2 {[%clk 0:00:09.9]} 56... Kb2 {[%clk 0:00:16.6]} 57. Bc4 {[%clk 0:00:10.1]}
57... Ka3 {[%clk 0:00:16.7]} 58. Kf3 {[%clk 0:00:10.6]} 58... Be1 {[%clk
0:00:15.7]} 59. a5 {[%clk 0:00:10.8]} 59... Kb4 {[%clk 0:00:13.4]} 60. b6 {[%clk
0:00:10.2]} 60... axb6 {[%clk 0:00:11.9]} 61. axb6 {[%clk 0:00:10.5]} 61... Bf2
{[%clk 0:00:11.6]} 62. b7 {[%clk 0:00:10.8]} 62... Ba7 {[%clk 0:00:11.9]} 63.
Bd3 {[%clk 0:00:10.4]} 63... Kc5 {[%clk 0:00:12]} 64. Be4 {[%clk 0:00:10.7]}
64... Kd4 {[%clk 0:00:09.9]} 65. Kf4 {[%clk 0:00:11.1]} 65... Bb8 {[%clk
0:00:09.1]} 66. Bf3 {[%clk 0:00:11.4]} 66... Kc5 {[%clk 0:00:06.9]} 67. Kxg3
{[%clk 0:00:11.9]} 67... Kb6 {[%clk 0:00:06.3]} 68. Kg4 {[%clk 0:00:12.5]} 68...
Kxb7 {[%clk 0:00:07.2]} 69. Kf5 {[%clk 0:00:13.1]} 69... Kc7 {[%clk 0:00:08.1]}
70. Ke6 {[%clk 0:00:12.6]} 70... Kd8 {[%clk 0:00:09]} 71. Kf7 {[%clk 0:00:13]}
71... Ba7 {[%clk 0:00:09.5]} 72. g4 {[%clk 0:00:13.1]} 72... Be3 {[%clk
0:00:10.1]} 73. Ke6 {[%clk 0:00:12.4]} 73... Ke8 {[%clk 0:00:10]} 74. Be4 {[%clk
0:00:12.7]} 74... Kf8 {[%clk 0:00:09.6]} 75. Bg6 {[%clk 0:00:12.9]} 75... Bg5
{[%clk 0:00:08.3]} 76. Bh5 {[%clk 0:00:13.6]} 76... Kg7 {[%clk 0:00:07.2]} 77.
Kf5 {[%clk 0:00:14.2]} 77... Bf6 {[%clk 0:00:07.4]} 78. g5 {[%clk 0:00:14.5]}
78... Bd4 {[%clk 0:00:06.7]} 79. Ke6 {[%clk 0:00:14.2]} 79... Kf8 {[%clk
0:00:07.3]} 80. Bf7 {[%clk 0:00:14]} 80... Be3 {[%clk 0:00:07]} 81. g6 {[%clk
0:00:04.6]} 81... Bh6 {[%clk 0:00:07]} 82. Kf5 {[%clk 0:00:00.5]} 82... Bg7
{[%clk 0:00:07.9]} 0-1